Cogmind - Beta 13 @@@ ROGUE MODE // 2024.05.25 @ 15:35:03 Player: Schmee Result: Self-destructed Performance ------------- Evolutions (1) 500 Regions Visited (2) 400 Robots Destroyed (22) 110 Value Destroyed (508) 508 Prototype IDs (0) 0 Alien Tech Used (0) 0 Bonus (0) 0 TOTAL SCORE: 1518 Bonus ------- None Cogmind --------- Core Integrity 317/400 Matter 278/300 Energy 100/100 System Corruption 4% Temperature Cool (0) Movement Walking (120) Location -9/Materials Parts ------- > --- POWER (1) -------- (None) > --- PROPULSION (3) --- Improved Aluminum Leg Improved Aluminum Leg > --- UTILITY (3) ------ Small Storage Unit > --- WEAPON (2) ------- Mining Claw > --- INVENTORY (8) ---- Light Treads Light Treads Improved Aluminum Leg Wheel Wheel Signal Interpreter Improved Terrain Scanner Peak State ------------ > --- POWER ------------ Improved Ion Engine > --- PROPULSION ------- Improved Aluminum Leg Improved Aluminum Leg Improved Aluminum Leg > --- UTILITY ---------- Small Storage Unit Seismic Detector Hardened Light Armor Plating > --- WEAPON ----------- Assault Rifle Assault Rifle > --- INVENTORY -------- Light Treads Light Treads Aluminum Leg Wheel Wheel Signal Interpreter Improved Terrain Scanner Mining Claw [Rating: 15] Favorites ----------- Power Ion Engine Engine Ion Engine Propulsion Aluminum Leg Leg Aluminum Leg Utility Small Storage Unit Device Seismic Detector Storage Small Storage Unit Protection Hardened Light Armor Plating Weapon Assault Rifle Ballistic Gun Assault Rifle Slashing Weapon Mining Claw Build | -11 -10 -9 ------- Run | Yrd Mat Mat Slots Evolved 2 | . . 2 Power . | . . . Propulsion 1 | . . 1 Utility 1 | . . 1 Weapon . | . . . Parts Attached 20 | 2 5 13 Power 2 | . 1 1 Engine 2 | . 1 1 Core . | . . . Reactor . | . . . Propulsion 12 | . 3 9 Treads . | . . . Leg 12 | . 3 9 Wheel . | . . . Hover . | . . . Flight . | . . . Utility 4 | 2 1 1 Device 3 | 2 1 . Storage . | . . . Processor . | . . . Hackware . | . . . Protection 1 | . . 1 Artifact . | . . . Weapon 2 | . . 2 Energy Gun . | . . . Energy Cannon . | . . . Ballistic Gun 1 | . . 1 Ballistic Cannon . | . . . Launcher . | . . . Special Weapon . | . . . Impact Weapon . | . . . Slashing Weapon 1 | . . 1 Piercing Weapon . | . . . Special Melee Weapon . | . . . Unidentified Prototypes . | . . . Parts Lost 9 | . 1 8 Power 3 | . 1 2 Propulsion 1 | . . 1 Utility 2 | . . 2 Weapon 3 | . . 3 Highest Loss Streak 6 | . 1 6 To Critical Strikes . | . . . Average Slot Usage (%) 96 | . 99 94 Engine 12 | . 13 10 Leg 30 | . 28 32 Device 11 | . 13 10 Storage 12 | . 14 11 Protection 5 | . . 10 Ballistic Gun 22 | . 28 18 Naked Turns . | . . . Heaviest Build 22 | 14 14 22 Greatest Support 39 | 20 20 39 Greatest Overweight (x) . | . . . Average Overweight (x) . | . . . Largest Inventory Capacity 8 | 8 8 8 Average Capacity 8 | 8 8 8 Most Carried 8 | 7 8 8 Average Carried 7 | 6 7 7 Final Capacity 8 | 8 8 8 Final Carried 8 | 7 8 7 Class Distribution -------------------- 76% | Mutant 23% | Scavenger-Mutant Dominant Class ---------------- Mutant | -10/Materials Mutant | -9/Materials Resources | -11 -10 -9 ----------- Run | Yrd Mat Mat Matter Collected 739 | 260 245 234 Remotely . | . . . Salvage Created 829 | 114 299 416 Parts 53 | 5 18 30 Haulers Intercepted 2 | . 1 1 Recyclers Shooed 1 | . . 1 Parts Field Recycled . | . . . Retrieved Matter . | . . . Parts Self-Destructed . | . . . Prevented . | . . . Kills | -11 -10 -9 ------- Run | Yrd Mat Mat Combat Hostiles Destroyed 16 | . 7 9 Guns 16 | . 7 9 Classes Destroyed 9 | 2 5 2 Worker 1 | . 1 . Tunneler 1 | 1 . . Hauler 2 | . 1 1 Recycler 1 | 1 . . Watcher 1 | . 1 . Swarmer 5 | . 3 2 Grunt 8 | . 4 4 Brawler 1 | . . 1 Sentry 2 | . . 2 Best Kill Streak 3 | 2 3 3 Combat Bots Only 3 | . 3 3 Max Kills in Single Turn 1 | 1 1 1 Gunslinging . | . . . Exploded . | . . . Melee . | . . . Uniques/NPCs Destroyed . | . . . Combat | -11 -10 -9 -------- Run | Yrd Mat Mat Hostile Shots Fired 162 | . 46 116 Missed 57 | . 15 42 Damage Taken 1435 | . 402 1033 Core 139 | . 56 83 Absorbed by Shields . | . . . Core Remaining (%) 88 | 100 77 . Volleys Fired 97 | 11 49 37 Largest 2 | 2 2 2 Hottest 40 | 40 40 40 Shots Fired 187 | 22 98 67 Gun 187 | 22 98 67 Cannon . | . . . Launcher . | . . . Special . | . . . Kinetic 187 | 22 98 67 Thermal . | . . . Explosive . | . . . Electromagnetic . | . . . Robot Hit Streak 17 | 4 6 17 Robot Miss Streak 5 | 3 5 2 Penetration Max . | . . . Secondary Targets 2 | . . 2 Max Gunslinging Chain 1 | . . 1 Shots Hit Robots 110 | 12 52 46 Core Hits 40 | 3 17 20 Critical Kills 1 | . 1 . Critical Parts Destroyed . | . . . Critical Strikes 1 | . 1 . Destroy 1 | . 1 . Melee Attacks 2 | . . 2 Impact . | . . . Slashing 2 | . . 2 Piercing . | . . . Sneak Attacks . | . . . Combat Hostiles . | . . . Follow-up Attacks . | . . . Damage Inflicted 1251 | 124 556 571 Guns 1204 | 124 556 524 Cannons . | . . . Explosions . | . . . Melee 24 | . . 24 Ramming 23 | . . 23 Kinetic 1204 | 124 556 524 Thermal . | . . . Explosive . | . . . Electromagnetic . | . . . Impact . | . . . Slashing 24 | . . 24 Piercing . | . . . Highest Corruption 4 | . 2 4 Average Corruption 2 | . 2 4 Corruption Purged . | . . . Corruption Blocked . | . . . Effects 21 | . 9 12 Message Errors 5 | . 2 3 Matter Fused 2 | . . 2 Heat Flow Errors 1 | . 1 . Energy Discharges 3 | . 1 2 Parts Rejected 1 | . 1 . Data Loss (minor) 4 | . 3 1 Data Loss (major) 3 | . 1 2 Misfires 1 | . . 1 Weapon Failures 1 | . . 1 Overload Shots . | . . . Overflow Damage . | . . . Projectiles . | . . . Explosions . | . . . Melee . | . . . Knockbacks . | . . . Impact . | . . . Kinetic . | . . . Secondary . | . . . Self-Inflicted Damage . | . . . Shots . | . . . Rammed . | . . . Targets Rammed 3 | . . 3 Kicked 3 | . . 3 Crushed . | . . . Highest Temperature 281 | . 281 20 Average Temperature 18 | . 40 5 Received Heat Transfer 447 | . 219 228 Siege Activations . | . . . Robots Corrupted . | . . . Combat Hostiles . | . . . Parts Fried . | . . . Impact Corruptions . | . . . Robots Melted . | . . . Combat Hostiles . | . . . Parts Melted . | . . . Heat Transferred . | . . . Parts Sabotaged . | . . . Parts Stolen . | . . . Parts Stripped . | . . . Power Chain Reactions . | . . . Alert | -11 -10 -9 ------- Run | Yrd Mat Mat Peak Influence 173 | 10 165 173 Initial 38 | . 6 38 Average 75 | 4 82 78 Maximum Alert Level . | . . . Low Security (%) 100 | 100 100 100 Level 1 . | . . . Level 2 . | . . . Level 3 . | . . . Level 4 . | . . . Level 5 . | . . . High Security . | . . . Max Security . | . . . Squads Dispatched 2 | . 1 1 Investigation . | . . . Extermination . | . . . Reinforcement 2 | . 1 1 Assault . | . . . Garrison . | . . . Intercept . | . . . Searches Triggered . | . . . Construction Impeded . | . . . Haulers Reinforced . | . . . Active Scanning Responses . | . . . Cargo Convoy Interrupts . | . . . Stealth | -11 -10 -9 --------- Run | Yrd Mat Mat Distress Signals 1 | . . 1 Communications Jammed . | . . . Distress Signals . | . . . Times Spotted 31 | . 15 16 Peak Tracking Total 7 | . 4 7 Tactical Retreats . | . . . Traps | -11 -10 -9 ------- Run | Yrd Mat Mat Traps Triggered 1 | . 1 . Indirectly . | . . . Trap Hack Attempts . | . . . Triggered . | . . . Disarmed . | . . . Reprogrammed . | . . . Reused . | . . . Traps Extracted . | . . . Installed . | . . . Triggered . | . . . Machines | -11 -10 -9 ---------- Run | Yrd Mat Mat Machines Disabled . | . . . Max in Single Turn . | . . . Machines Repaired . | . . . Machines Dismantled . | . . . Machines Sabotaged . | . . . Overloaded Fab Kills . | . . . Hacking | -11 -10 -9 --------- Run | Yrd Mat Mat Machines Accessed 7 | . 2 5 Terminals 7 | . 2 5 Fabricators . | . . . Repair Stations . | . . . Recycling Units . | . . . Scanalyzers . | . . . Garrison Access . | . . . Total Hacks 13 | . 6 7 Successful 7 | . 2 5 Failed 6 | . 4 2 Catastrophic . | . . . Database Lockouts . | . . . Manual 11 | . 6 5 Terminals 13 | . 6 7 Fabricators . | . . . Repair Stations . | . . . Recycling Units . | . . . Scanalyzers . | . . . Garrison Access . | . . . Terminal Hacks 3 | . 2 1 Robot Analysis 2 | . 2 . Recall Reinforcements 1 | . . 1 Fabricator Hacks . | . . . Repair Station Hacks . | . . . Recycling Unit Hacks . | . . . Scanalyzer . | . . . Garrison Access Hacks . | . . . Unauthorized Hacks 4 | . . 4 Terminals 4 | . . 4 Botnet 4 | . . 4 Fabricators . | . . . Repair Stations . | . . . Recycling Units . | . . . Scanalyzers . | . . . Garrison Access . | . . . Data Cores Recovered . | . . . Used . | . . . Hacking Detections 4 | . 2 2 Full Trace Events . | . . . Feedback Events . | . . . Feedback Blocked . | . . . Robot Schematics Acquired . | . . . Robots Built . | . . . Authchips . | . . . Time . | . . . Total Robot Build Rating . | . . . Part Schematics Acquired . | . . . Parts Built . | . . . Authchips . | . . . Time . | . . . Total Part Build Rating . | . . . Parts Repaired . | . . . Time . | . . . Parts Recycled . | . . . Recycled Matter . | . . . Retrieved Matter . | . . . Retrieved Components . | . . . Parts Scanalyzed . | . . . Part Schematics Acquired . | . . . Parts Damaged . | . . . Bothacking | -11 -10 -9 ------------ Run | Yrd Mat Mat Used RIF Installer . | . . . Robots Hacked . | . . . Non-combat . | . . . Combat . | . . . Robot Hacks Applied . | . . . Relay Couplers Released . | . . . Fabnet Peak Effective % . | . . . Robots Rewired . | . . . Allies Hacked . | . . . Hacks Repelled . | . . . Allies | -11 -10 -9 -------- Run | Yrd Mat Mat Total Allies . | . . . Largest Group . | . . . Highest-Rated Group . | . . . Highest-Rated Ally . | . . . Total Orders . | . . . Ally Attacks . | . . . Total Damage . | . . . Kills . | . . . Allies Corrupted . | . . . Allies Melted . | . . . Intel | -11 -10 -9 ------- Run | Yrd Mat Mat Robot Analysis Total 2 | . 2 . Derelict Logs Recovered . | . . . Drone Launches . | . . . Drone Recoveries . | . . . Exploration | -11 -10 -9 ------------- Run | Yrd Mat Mat Turns Passed 1420 | 76 622 722 Spaces Moved 836 | 35 332 469 Core . | . . . Treads . | . . . Legs 836 | 35 332 469 Wheels . | . . . Hover . | . . . Flight . | . . . Fastest Speed 120 | 120 120 120 Average Speed 120 | 120 120 120 Slowest Speed 120 | 120 120 120 Overloaded Moves . | . . . Propulsion Burnouts . | . . . Robots Hopped . | . . . Cave-ins Triggered . | . . . Exploration Rate (%) 37 | 4 72 37 Regions Visited 2 Branch Regions . Pre-discovered Areas . | . . . Known Exits Taken . | . . . Unknown Exits Taken 2 | 1 1 . Scrap Searched . | . . . Spaces Dug . | . . . Terrain Destroyed . | . . . Melee . | . . . Projectile . | . . . AOE . | . . . Terrain Rammed . | . . . Walls Destroyed . | . . . Machines Disabled . | . . . Actions | -11 -10 -9 --------- Run | Yrd Mat Mat Total 1078 | 48 467 563 Wait 108 | . 79 29 Move 834 | 34 331 469 Hop . | . . . Pick Up 3 | . 1 2 Fast Attach 5 | 2 1 2 Attach 4 | . 1 3 Detach 1 | 1 . . Swap 11 | . 3 8 Drop 10 | . 2 8 Fire 97 | 11 49 37 Melee 2 | . . 2 Ram . | . . . Kick 3 | . . 3 Crush . | . . . Escape Stasis . | . . . Rewire . | . . . Trap . | . . . Miscellaneous . | . . . Route ------- -11/Scrapyard -10/Materials (discovered 3 exits: *Mat x2 / [*Min]) -9/Materials (discovered 1 exit: [*Mat]) History --------- Turn | Location | Event 1 | -11/Scrapyard | Discovered new exit (range 3) 77 | -11/Scrapyard | Entered Materials 193 | -10/Materials | Discovered new exit (range 13) 318 | -10/Materials | Build established: Mutant 328 | -10/Materials | Discovered new exit (range 15) 665 | -10/Materials | Discovered new exit (range 8) 699 | -10/Materials | Entered another Materials area 699 | -9/Materials | Evolved 2 slots: Propulsion x1, Utility x1 1126 | -9/Materials | Build established: Scavenger-Mutant 1158 | -9/Materials | Discovered new exit (range 9) 1421 | -9/Materials | Self-destructed Last Messages --------------- 01346_ Acquired Imp. Aluminum Leg. 01347_ R-06 Scavenger collects Med. Battery. 01351_ R-06 Scavenger collects Imp. Aluminum Leg. 01351_ Extracted 6 energy. 01357_ R-06 Scavenger collects Med. Battery. 01376_ Seismic Detector destroyed. 01377_ S-10 Pest destroyed. 01377_ Switching to secondary target: Y-45 Defender. 01383_ S-10 Pest destroyed. 01383_ Switching to secondary target: Y-45 Defender. 01388_ Assault Rifle destroyed. 01391_ System corrupted: Component data lost. 01399_ Assault Rifle destroyed. 01407_ Imp. Aluminum Leg destroyed. 01408_ K-01 Serf collects debris. 01411_ K-01 Serf cleans the Terminal. 01412_ Y-45 Defender destroyed. 01414_ K-01 Serf collects debris. 01415_ Hrd. Light Armor Plating destroyed. 01415_ Imp. Ion Engine destroyed. Map ----- +----------------------------------------------------+ | # #### [#???????????????????????????????????? | | ## #??# #???????????????????????????????????? | | #??# #???????????????????????????????????? | | ####?#########???????????????????????????????????? | | ?????# #???????????????????????????????????????? | | ??#### < #???????????????????????????????????????? | | ###T## #???????????????????????????????????????? | | #???????????????????????????????????????? | | ####????????????????????????????????????? | | "" """ """#????????????????????????????????????? | | "" """ T"#????????????????????????????????????? | | "" """ """#????????????????????????????????????? | | #############???????????????????????????? | | ^ # #???????????????????????????? | | == # """ #???????????????????????????? | | = # """ #???? +?????????????????????? | | [! # """ #???? #?????????????????????? | | [[ + #???? #?????????????????????? | | [[ # "" #???? #?????????????????????? | | ######### # "T # """ #?????????????????????? | | #??????# # "" # """ +?????????????????????? | | #??????# # # #?????????????????????? | | #??????# ########## """ ###+#########?????????? | | #??????# #????????# """ # !!!#?????????? | | #??????# #????????# """ + "S !!!##????????? | | #??????# #????????# @ # """ !!! #????????? | | #??????# #????????# # "" #?????????? | | #??????# #????????####+## %%[ =#?????????? | | #??????# #???????????# #######+######?????????? | | ##??????# #??????????##=#####=[== #????????????? | | ????????# ############ ! [%[ T ##???????????? | | ????????# % != !! "" ?????? | | ????????# ############!= ##### ???? | | ????????# #???????#####+##### #????????????? | | ????????# #???????# ## ##????????????? | | ????????# #???????# ## #?????????????? | | ????????# +???????# """ """ ## #?????????????? | | ???????? #???????# """ """ ## #?????????????? | | ??????? #???????# """ """ ## #?????????????? | | ?????? #???????# #? #?????????????? | | ??????### #???????# #? #?????????????? | | ????????# #???????? ?? ?????????????? | | ????????# #?????????#######??? ?????????????? | | ????????# ???????????????????? ????????????? | | ????????# ????????????????????? ?????????????? | | ????????+ ????????????????????? ???????????????? | | ????????? ?????????????????????????????????????? | | ?????????????????????????????????????????????????? | | ?????????????????????????????????????????????????? | | ?????????????????????????????????????????????????? | +----------------------------------------------------+ Best States ------------- Heat Dissipation 28 Energy Generation 12 Energy Capacity 265 Matter Stores 300 Matter Capacity 300 Sight Range 16 Terrain Scan Range 16 Terrain Scan Density 10 Armor Coverage 150 Evasion (%) 55 Item Schematics ----------------- None Robot Schematics ------------------ None Fabricated ------------ Nothing Alien Tech Used ----------------- None Achievements -------------- None Challenges ------------ None Game ------ Seed ScanLegBeam Manual? 0 Play Time 00:09:37 Cumulative 112.5 hours Start 2024.05.25 @ 15:25:44 End 2024.05.25 @ 15:35:03 Sessions 1 Manual Loads 0 Difficulty Rogue Special Mode None Game No. 54 Rogue 52 Adventurer 0 Explorer 2 Win Type - Total 8 Types 8/0/0/0/0/0/0/0/0 Lore% 52 Gallery% 68 Achievement% 56 Wizard Run 0 Options --------- Layout 0 ASCII 0 Keyboard 1 Movement Numpad Keybinds 0 Fullscreen 1 Font 24/Smallcaps Map View 76x50 Zoom Use 0% Tactical HUD 1 Map Filters NONE Filters NONE Steam 1 RUN: f1ffb650-fd9f-4d0b-9982-7e2d0bd2f7ff